[Event "Live Chess"]
[Site "Chess.com"]
[Date "2023.05.20"]
[Round "-"]
[White "Davidagye"]
[Black "Missedidea"]
[Result "1-0"]
[WhiteElo "1664"]
[BlackElo "1611"]
[TimeControl "300"]
[EndTime "11:04:00 PDT"]
[Termination "Davidagye won on time"]

1. b4 {[%clk 0:04:58]} 1... Nf6 {[%clk 0:04:54.6]} 2. Bb2 {[%clk 0:04:56]} 2...
e6 {[%clk 0:04:52.1]} 3. a3 {[%clk 0:04:54.2]} 3... d5 {[%clk 0:04:50]} 4. e3
{[%clk 0:04:52.9]} 4... a5 {[%clk 0:04:48.7]} 5. b5 {[%clk 0:04:51.1]} 5... c6
{[%clk 0:04:47.1]} 6. f3 {[%clk 0:04:50.2]} 6... Be7 {[%clk 0:04:41.6]} 7. c4
{[%clk 0:04:45]} 7... O-O {[%clk 0:04:39.4]} 8. d4 {[%clk 0:04:44]} 8... Nbd7
{[%clk 0:04:29.7]} 9. Nd2 {[%clk 0:04:42.6]} 9... Ne8 {[%clk 0:04:22.9]} 10. Bd3
{[%clk 0:04:36.3]} 10... f6 {[%clk 0:04:20.9]} 11. f4 {[%clk 0:04:32.3]} 11...
Qc7 {[%clk 0:04:02.3]} 12. Ngf3 {[%clk 0:04:30.5]} 12... b6 {[%clk 0:03:37.9]}
13. bxc6 {[%clk 0:04:27.2]} 13... Qxc6 {[%clk 0:03:36.5]} 14. Rc1 {[%clk
0:04:26.8]} 14... Qb7 {[%clk 0:03:34.3]} 15. h4 {[%clk 0:04:24.1]} 15... h6
{[%clk 0:03:27.2]} 16. g4 {[%clk 0:04:22.3]} 16... Nd6 {[%clk 0:03:08.2]} 17. g5
{[%clk 0:04:19.6]} 17... Ne4 {[%clk 0:02:58]} 18. Qc2 {[%clk 0:04:15.7]} 18...
f5 {[%clk 0:02:56]} 19. gxh6 {[%clk 0:04:13.1]} 19... gxh6 {[%clk 0:02:54.3]}
20. Rg1+ {[%clk 0:04:12.4]} 20... Kh7 {[%clk 0:02:50.7]} 21. cxd5 {[%clk
0:04:10.6]} 21... exd5 {[%clk 0:02:46.4]} 22. Ne5 {[%clk 0:04:04.9]} 22... Ndf6
{[%clk 0:02:39]} 23. Qc7 {[%clk 0:03:58.1]} 23... Ra7 {[%clk 0:02:31.4]} 24.
Qxb7 {[%clk 0:03:49.2]} 24... Rxb7 {[%clk 0:02:29.3]} 25. Ba6 {[%clk 0:03:47.4]}
25... Rb8 {[%clk 0:02:23.1]} 26. Bxc8 {[%clk 0:03:42.6]} 26... Rbxc8 {[%clk
0:02:21.1]} 27. Ng6 {[%clk 0:03:39.9]} 27... Rfe8 {[%clk 0:02:15.3]} 28. Rxc8
{[%clk 0:03:36.6]} 28... Rxc8 {[%clk 0:02:11.2]} 29. Nxe7 {[%clk 0:03:35.5]}
29... Rc2 {[%clk 0:02:07.4]} 30. Nxe4 {[%clk 0:03:33.4]} 30... fxe4 {[%clk
0:02:02.3]} 31. Ba1 {[%clk 0:03:29]} 31... h5 {[%clk 0:01:51.5]} 32. Nf5 {[%clk
0:03:13.2]} 32... Ng4 {[%clk 0:01:47.4]} 33. Kd1 {[%clk 0:03:07.3]} 33... Ra2
{[%clk 0:01:44.6]} 34. Bc3 {[%clk 0:02:59.1]} 34... Rxa3 {[%clk 0:01:43.2]} 35.
Kd2 {[%clk 0:02:53.5]} 35... b5 {[%clk 0:01:39.4]} 36. Bb2 {[%clk 0:02:45.9]}
36... Ra2 {[%clk 0:01:37.8]} 37. Kc2 {[%clk 0:02:42.7]} 37... a4 {[%clk
0:01:35.3]} 38. Rc1 {[%clk 0:02:40.4]} 38... b4 {[%clk 0:01:33.2]} 39. Kb1
{[%clk 0:02:39.5]} 39... b3 {[%clk 0:01:31.9]} 40. Rc3 {[%clk 0:02:34.7]} 40...
a3 {[%clk 0:01:26.4]} 41. Rxb3 {[%clk 0:02:33.4]} 41... Rxb2+ {[%clk 0:01:24.3]}
42. Rxb2 {[%clk 0:02:32.7]} 42... axb2 {[%clk 0:01:22.8]} 43. Kxb2 {[%clk
0:02:32.4]} 43... Kg8 {[%clk 0:01:18.2]} 44. Kc3 {[%clk 0:02:30.9]} 44... Kf7
{[%clk 0:01:16.7]} 45. Kb4 {[%clk 0:02:25.6]} 45... Ke6 {[%clk 0:01:15.5]} 46.
Ng7+ {[%clk 0:02:23.7]} 46... Kd6 {[%clk 0:01:12.3]} 47. Nxh5 {[%clk 0:02:11.4]}
47... Nxe3 {[%clk 0:01:11.1]} 48. f5 {[%clk 0:02:08.8]} 48... Ng4 {[%clk
0:01:03.4]} 49. f6 {[%clk 0:02:03.4]} 49... e3 {[%clk 0:00:59.8]} 50. Kc3 {[%clk
0:02:01]} 50... Ke6 {[%clk 0:00:52.7]} 51. Nf4+ {[%clk 0:01:58.4]} 51... Kxf6
{[%clk 0:00:51.1]} 52. Nxd5+ {[%clk 0:01:57.8]} 52... Ke6 {[%clk 0:00:47.4]} 53.
Nf4+ {[%clk 0:01:56.3]} 53... Kd6 {[%clk 0:00:45.8]} 54. Kd3 {[%clk 0:01:53.7]}
54... Ke7 {[%clk 0:00:39.5]} 55. Nd5+ {[%clk 0:01:52.1]} 55... Kd6 {[%clk
0:00:37.3]} 56. Nxe3 {[%clk 0:01:51.6]} 56... Nf6 {[%clk 0:00:35.8]} 57. Kc4
{[%clk 0:01:47.6]} 57... Nh5 {[%clk 0:00:33.1]} 58. d5 {[%clk 0:01:46.7]} 58...
Nf6 {[%clk 0:00:28.8]} 59. Nf5+ {[%clk 0:01:44.5]} 59... Kd7 {[%clk 0:00:25.6]}
60. Kd4 {[%clk 0:01:42.4]} 60... Ng4 {[%clk 0:00:22.7]} 61. h5 {[%clk
0:01:39.2]} 61... Nf6 {[%clk 0:00:20.5]} 62. h6 {[%clk 0:01:38]} 62... Nh7
{[%clk 0:00:19.2]} 63. Ke5 {[%clk 0:01:36.5]} 63... Nf8 {[%clk 0:00:15.1]} 64.
Ng7 {[%clk 0:01:33.2]} 64... Nh7 {[%clk 0:00:10.9]} 65. Ne6 {[%clk 0:01:32.1]}
65... Ke7 {[%clk 0:00:06.2]} 66. d6+ {[%clk 0:01:31.1]} 66... Kd7 {[%clk
0:00:05]} 67. Nc5+ {[%clk 0:01:29.8]} 67... Ke8 {[%clk 0:00:01.7]} 68. d7+
{[%clk 0:01:29.1]} 1-0

[Event "Live Chess"]
[Site "Chess.com"]
[Date "2023.05.20"]
[Round "-"]
[White "AyannaTang"]
[Black "FlyingChessKestrel13"]
[Result "0-1"]
[WhiteElo "176"]
[BlackElo "2139"]
[TimeControl "300"]
[EndTime "11:04:02 PDT"]
[Termination "FlyingChessKestrel13 won by checkmate"]

1. e4 {[%clk 0:04:59]} 1... c5 {[%clk 0:04:57.5]} 2. Bc4 {[%clk 0:04:52]} 2...
e6 {[%clk 0:04:55.6]} 3. d4 {[%clk 0:04:47.1]} 3... d5 {[%clk 0:04:53.7]} 4.
exd5 {[%clk 0:04:41.3]} 4... exd5 {[%clk 0:04:52.5]} 5. Bb5+ {[%clk 0:04:33.2]}
5... Nc6 {[%clk 0:04:51.3]} 6. Bxc6+ {[%clk 0:04:31]} 6... bxc6 {[%clk
0:04:49.6]} 7. dxc5 {[%clk 0:04:29.2]} 7... Bxc5 {[%clk 0:04:46.8]} 8. h4 {[%clk
0:04:17.1]} 8... Nf6 {[%clk 0:04:43.7]} 9. Bg5 {[%clk 0:04:13.8]} 9... O-O
{[%clk 0:04:42.2]} 10. Bxf6 {[%clk 0:04:12.3]} 10... Qxf6 {[%clk 0:04:40.7]} 11.
Nf3 {[%clk 0:04:05]} 11... Qxb2 {[%clk 0:04:39]} 12. Nbd2 {[%clk 0:03:59.1]}
12... Re8+ {[%clk 0:04:33]} 13. Kf1 {[%clk 0:03:42.4]} 13... Ba6+ {[%clk
0:04:31]} 14. Kg1 {[%clk 0:03:40.1]} 14... Be2 {[%clk 0:04:29.3]} 15. Qe1 {[%clk
0:03:23.3]} 15... Bxf3 {[%clk 0:04:26.8]} 16. gxf3 {[%clk 0:03:20.5]} 16...
Rxe1+ {[%clk 0:04:24.9]} 17. Nf1 {[%clk 0:03:14.2]} 17... Qxa1 {[%clk
0:04:22.5]} 18. Rh3 {[%clk 0:03:09.8]} 18... Rxf1+ {[%clk 0:04:21.6]} 19. Kg2
{[%clk 0:03:08]} 19... Rxf2+ {[%clk 0:04:20.8]} 20. Kg3 {[%clk 0:03:06.1]} 20...
Qg1+ {[%clk 0:04:20.4]} 21. Kf4 {[%clk 0:03:04.1]} 21... Re8 {[%clk 0:04:17.1]}
22. Rg3 {[%clk 0:03:01.9]} 22... Bd6+ {[%clk 0:04:15.6]} 23. Kg4 {[%clk
0:02:59.3]} 23... Qxg3+ {[%clk 0:04:12.1]} 24. Kf5 {[%clk 0:02:52.5]} 24... g6+
{[%clk 0:04:11.1]} 25. Kf6 {[%clk 0:02:50.7]} 25... Qe5# {[%clk 0:04:10.3]} 0-1

[Event "Live Chess"]
[Site "Chess.com"]
[Date "2023.05.20"]
[Round "-"]
[White "Andysav3"]
[Black "BillythekidFellowes"]
[Result "0-1"]
[WhiteElo "1692"]
[BlackElo "2000"]
[TimeControl "300"]
[EndTime "11:04:11 PDT"]
[Termination "BillythekidFellowes won on time"]

1. e4 {[%clk 0:04:56.6]} 1... Nc6 {[%clk 0:04:53.8]} 2. Nf3 {[%clk 0:04:54.1]}
2... d6 {[%clk 0:04:52.4]} 3. d4 {[%clk 0:04:48.7]} 3... Nf6 {[%clk 0:04:45.3]}
4. Nc3 {[%clk 0:04:44.8]} 4... g6 {[%clk 0:04:28.8]} 5. Bc4 {[%clk 0:04:25.7]}
5... Bg7 {[%clk 0:04:15.2]} 6. O-O {[%clk 0:04:19.1]} 6... O-O {[%clk 0:04:14]}
7. h3 {[%clk 0:04:16.6]} 7... Nxe4 {[%clk 0:04:08.8]} 8. Bxf7+ {[%clk
0:03:24.7]} 8... Rxf7 {[%clk 0:04:03.8]} 9. Nxe4 {[%clk 0:03:23.7]} 9... Qf8
{[%clk 0:03:59]} 10. Nfg5 {[%clk 0:03:14.4]} 10... Rf5 {[%clk 0:03:55.5]} 11. c3
{[%clk 0:03:03.1]} 11... h6 {[%clk 0:03:50]} 12. d5 {[%clk 0:02:28.7]} 12... Ne5
{[%clk 0:03:41.4]} 13. Ne6 {[%clk 0:02:25.7]} 13... Bxe6 {[%clk 0:03:32.1]} 14.
dxe6 {[%clk 0:02:24.6]} 14... Rh5 {[%clk 0:03:23.6]} 15. f4 {[%clk 0:02:10.7]}
15... Nc6 {[%clk 0:03:14.6]} 16. Be3 {[%clk 0:01:43.3]} 16... Nd8 {[%clk
0:02:55.1]} 17. Qf3 {[%clk 0:01:33.7]} 17... Nxe6 {[%clk 0:02:44.6]} 18. g4
{[%clk 0:01:31.2]} 18... Rb5 {[%clk 0:02:34.3]} 19. b4 {[%clk 0:01:15.3]} 19...
Kh7 {[%clk 0:02:06.9]} 20. a4 {[%clk 0:01:11.5]} 20... Rd5 {[%clk 0:01:41.4]}
21. Nf6+ {[%clk 0:01:04.8]} 21... Qxf6 {[%clk 0:01:37.3]} 22. Qxd5 {[%clk
0:01:03.9]} 22... c6 {[%clk 0:01:32.5]} 23. Qd3 {[%clk 0:01:00.1]} 23... Rf8
{[%clk 0:01:26.9]} 24. Rac1 {[%clk 0:00:54.6]} 24... b6 {[%clk 0:01:23.1]} 25.
c4 {[%clk 0:00:45.9]} 25... Qh4 {[%clk 0:01:15.3]} 26. Kh2 {[%clk 0:00:42.2]}
26... Nc7 {[%clk 0:01:03.4]} 27. a5 {[%clk 0:00:37.2]} 27... c5 {[%clk 0:00:59]}
28. axb6 {[%clk 0:00:33.6]} 28... axb6 {[%clk 0:00:58.9]} 29. b5 {[%clk
0:00:32.2]} 29... Ne8 {[%clk 0:00:53.7]} 30. Rce1 {[%clk 0:00:24.6]} 30... e5
{[%clk 0:00:49.4]} 31. f5 {[%clk 0:00:20.4]} 31... e4 {[%clk 0:00:40]} 32. Qxe4
{[%clk 0:00:16.3]} 32... Be5+ {[%clk 0:00:37]} 33. Bf4 {[%clk 0:00:14.9]} 33...
Nf6 {[%clk 0:00:36.3]} 34. fxg6+ {[%clk 0:00:13.1]} 34... Kg7 {[%clk 0:00:32.6]}
35. Bxe5 {[%clk 0:00:10.1]} 35... dxe5 {[%clk 0:00:29.7]} 36. Qxe5 {[%clk
0:00:07.4]} 36... Kxg6 {[%clk 0:00:26.8]} 37. Qf5+ {[%clk 0:00:05]} 37... Kg7
{[%clk 0:00:25.4]} 38. Re7+ {[%clk 0:00:03.3]} 38... Rf7 {[%clk 0:00:24.6]} 0-1

[Event "Live Chess"]
[Site "Chess.com"]
[Date "2023.05.20"]
[Round "-"]
[White "MrDodgy"]
[Black "JanMur7"]
[Result "0-1"]
[WhiteElo "2316"]
[BlackElo "1973"]
[TimeControl "300"]
[EndTime "11:04:17 PDT"]
[Termination "JanMur7 won on time"]

1. c4 {[%clk 0:04:55.8]} 1... c5 {[%clk 0:04:57.7]} 2. g3 {[%clk 0:04:54.4]}
2... g6 {[%clk 0:04:56.3]} 3. Bg2 {[%clk 0:04:53.6]} 3... Bg7 {[%clk 0:04:55.3]}
4. Nc3 {[%clk 0:04:53.1]} 4... Nc6 {[%clk 0:04:54.3]} 5. Nf3 {[%clk 0:04:52.6]}
5... e6 {[%clk 0:04:53.2]} 6. e3 {[%clk 0:04:48.7]} 6... Nge7 {[%clk 0:04:51.6]}
7. d4 {[%clk 0:04:47.8]} 7... cxd4 {[%clk 0:04:30.9]} 8. exd4 {[%clk 0:04:47.7]}
8... d5 {[%clk 0:04:29]} 9. c5 {[%clk 0:04:44.1]} 9... O-O {[%clk 0:04:26.7]}
10. O-O {[%clk 0:04:42.5]} 10... b6 {[%clk 0:04:12]} 11. cxb6 {[%clk 0:04:30.1]}
11... Qxb6 {[%clk 0:04:04.8]} 12. Na4 {[%clk 0:04:23.8]} 12... Qc7 {[%clk
0:03:53.3]} 13. Bf4 {[%clk 0:04:13.4]} 13... Qa5 {[%clk 0:03:41.3]} 14. Rc1
{[%clk 0:04:00.7]} 14... Ba6 {[%clk 0:03:34.1]} 15. Re1 {[%clk 0:03:36.5]} 15...
Rac8 {[%clk 0:03:24.5]} 16. Nc5 {[%clk 0:03:22.8]} 16... Nxd4 {[%clk 0:02:54.1]}
17. Nxd4 {[%clk 0:02:49.3]} 17... Rxc5 {[%clk 0:02:49.1]} 18. Rxc5 {[%clk
0:02:40]} 18... Qxc5 {[%clk 0:02:45.6]} 19. Nb3 {[%clk 0:02:29]} 19... Qc8
{[%clk 0:02:11.6]} 20. Bd6 {[%clk 0:02:17.4]} 20... Qd7 {[%clk 0:02:01.3]} 21.
Be5 {[%clk 0:02:09.2]} 21... Bxe5 {[%clk 0:01:56.3]} 22. Rxe5 {[%clk 0:02:05.6]}
22... Qd6 {[%clk 0:01:54.1]} 23. Re3 {[%clk 0:01:52.6]} 23... Bc4 {[%clk
0:01:47.5]} 24. Rc3 {[%clk 0:01:43.8]} 24... Bxb3 {[%clk 0:01:41.2]} 25. Qxb3
{[%clk 0:01:39.3]} 25... Rb8 {[%clk 0:01:34.9]} 26. Qc2 {[%clk 0:01:36.6]} 26...
Qb6 {[%clk 0:01:16.9]} 27. b3 {[%clk 0:01:32.6]} 27... Nf5 {[%clk 0:01:13.1]}
28. h4 {[%clk 0:01:07.8]} 28... h5 {[%clk 0:01:03.3]} 29. Qd1 {[%clk 0:00:44.6]}
29... Qd4 {[%clk 0:00:49.1]} 30. Rd3 {[%clk 0:00:43.7]} 30... Qc5 {[%clk
0:00:35.6]} 31. Bf3 {[%clk 0:00:42.1]} 31... Rc8 {[%clk 0:00:33.2]} 32. Kg2
{[%clk 0:00:37.9]} 32... Qc1 {[%clk 0:00:31.4]} 33. Qe2 {[%clk 0:00:30]} 33...
Qa1 {[%clk 0:00:29]} 34. Bxh5 {[%clk 0:00:25.3]} 34... Rc1 {[%clk 0:00:21.5]}
35. Bxg6 {[%clk 0:00:23.7]} 35... Rg1+ {[%clk 0:00:19.3]} 36. Kf3 {[%clk
0:00:22.8]} 36... Nd4+ {[%clk 0:00:17.4]} 37. Rxd4 {[%clk 0:00:21.1]} 37... Qxd4
{[%clk 0:00:17.3]} 38. Bd3 {[%clk 0:00:18.9]} 38... Qf6+ {[%clk 0:00:15.7]} 39.
Kg4 {[%clk 0:00:17.4]} 39... Qg7+ {[%clk 0:00:14.4]} 40. Kh3 {[%clk 0:00:15.7]}
40... Rh1+ {[%clk 0:00:13.6]} 41. Kg2 {[%clk 0:00:14.7]} 41... Rc1 {[%clk
0:00:13.5]} 42. Qf3 {[%clk 0:00:13.5]} 42... Rc3 {[%clk 0:00:12.8]} 43. Qe2
{[%clk 0:00:10.8]} 43... Rc8 {[%clk 0:00:12.3]} 44. Bb5 {[%clk 0:00:09.9]} 44...
Rf8 {[%clk 0:00:12.2]} 45. Ba4 {[%clk 0:00:09.6]} 45... Rd8 {[%clk 0:00:11.3]}
46. h5 {[%clk 0:00:09.5]} 46... Qf6 {[%clk 0:00:10.9]} 47. Qg4+ {[%clk
0:00:08.4]} 47... Qg7 {[%clk 0:00:10]} 48. Qh3 {[%clk 0:00:08.3]} 48... Rf8
{[%clk 0:00:09.8]} 49. h6 {[%clk 0:00:08.2]} 49... Qh7 {[%clk 0:00:08.9]} 50. g4
{[%clk 0:00:08.1]} 50... Kh8 {[%clk 0:00:08.8]} 51. f3 {[%clk 0:00:08]} 51...
Qg6 {[%clk 0:00:07.7]} 52. Qg3 {[%clk 0:00:07.9]} 52... Qg5 {[%clk 0:00:07.5]}
53. Qe5+ {[%clk 0:00:07.5]} 53... Qxe5 {[%clk 0:00:06.6]} 54. Kh3 {[%clk
0:00:05.9]} 54... Qe2 {[%clk 0:00:06.5]} 55. Kh4 {[%clk 0:00:05.8]} 55... Rc8
{[%clk 0:00:06.2]} 56. g5 {[%clk 0:00:05.7]} 56... Rc2 {[%clk 0:00:05.9]} 57. g6
{[%clk 0:00:05.6]} 57... Qh2+ {[%clk 0:00:05.5]} 58. Kg5 {[%clk 0:00:04.9]}
58... Qg2+ {[%clk 0:00:05.4]} 59. Kf6 {[%clk 0:00:04.7]} 59... Re2 {[%clk
0:00:05.1]} 60. Ke7 {[%clk 0:00:04.6]} 60... Re5 {[%clk 0:00:04.9]} 61. g7+
{[%clk 0:00:04.5]} 61... Qxg7 {[%clk 0:00:04.2]} 62. h7 {[%clk 0:00:04.3]} 62...
Qxh7 {[%clk 0:00:03.5]} 63. Kd6 {[%clk 0:00:04.2]} 63... Qg6 {[%clk 0:00:03.3]}
64. Kc5 {[%clk 0:00:04.1]} 64... Qf6 {[%clk 0:00:03.2]} 65. Kb4 {[%clk 0:00:03]}
65... Re4+ {[%clk 0:00:03.1]} 66. Ka3 {[%clk 0:00:02.6]} 66... Rc4 {[%clk
0:00:03]} 67. bxc4 {[%clk 0:00:01.7]} 67... Qf5 {[%clk 0:00:02.9]} 68. Kb4
{[%clk 0:00:01.3]} 68... Qc2 {[%clk 0:00:02.8]} 69. Kc5 {[%clk 0:00:01.2]} 69...
Qxa2 {[%clk 0:00:02.7]} 70. Kd6 {[%clk 0:00:01.1]} 70... d4 {[%clk 0:00:02.6]}
71. Ke7 {[%clk 0:00:01]} 71... d3 {[%clk 0:00:02.5]} 0-1

[Event "Live Chess"]
[Site "Chess.com"]
[Date "2023.05.20"]
[Round "-"]
[White "Leonid_Starozhilov"]
[Black "birdseed45"]
[Result "1-0"]
[WhiteElo "2644"]
[BlackElo "1866"]
[TimeControl "300"]
[EndTime "11:04:21 PDT"]
[Termination "Leonid_Starozhilov won by resignation"]

1. e4 {[%clk 0:04:52.7]} 1... c5 {[%clk 0:04:59.1]} 2. Nf3 {[%clk 0:04:48.8]}
2... Nc6 {[%clk 0:04:58.7]} 3. d4 {[%clk 0:04:48]} 3... cxd4 {[%clk 0:04:58.6]}
4. Nxd4 {[%clk 0:04:47.7]} 4... e5 {[%clk 0:04:56.4]} 5. Nb5 {[%clk 0:04:45.9]}
5... d6 {[%clk 0:04:53.8]} 6. c4 {[%clk 0:04:43]} 6... a6 {[%clk 0:04:53.1]} 7.
N5c3 {[%clk 0:04:41.6]} 7... Nf6 {[%clk 0:04:52.7]} 8. Be2 {[%clk 0:04:39.6]}
8... Be7 {[%clk 0:04:52.1]} 9. Be3 {[%clk 0:04:38.3]} 9... O-O {[%clk 0:04:51]}
10. O-O {[%clk 0:04:38]} 10... Be6 {[%clk 0:04:42]} 11. Nd2 {[%clk 0:04:33.5]}
11... Rb8 {[%clk 0:04:38.3]} 12. a4 {[%clk 0:04:07.4]} 12... Na5 {[%clk
0:04:24.8]} 13. b3 {[%clk 0:03:58.3]} 13... Nc6 {[%clk 0:04:20.7]} 14. Nd5
{[%clk 0:03:55.1]} 14... Bxd5 {[%clk 0:04:15.8]} 15. cxd5 {[%clk 0:03:40.7]}
15... Nd4 {[%clk 0:04:01.5]} 16. Bd3 {[%clk 0:03:36.6]} 16... Rc8 {[%clk
0:03:51.7]} 17. Nc4 {[%clk 0:03:16.4]} 17... b5 {[%clk 0:03:44]} 18. axb5 {[%clk
0:03:13.1]} 18... axb5 {[%clk 0:03:43.9]} 19. Na5 {[%clk 0:03:12.3]} 19... Qd7
{[%clk 0:03:25.8]} 20. Bxd4 {[%clk 0:03:07.8]} 20... exd4 {[%clk 0:03:25.7]} 21.
Nc6 {[%clk 0:03:06.7]} 21... Ng4 {[%clk 0:03:15.6]} 22. Nxe7+ {[%clk 0:03:04.8]}
22... Qxe7 {[%clk 0:03:13.5]} 23. Qxg4 {[%clk 0:03:03.6]} 23... Rc3 {[%clk
0:03:12.7]} 24. Qe2 {[%clk 0:02:45.9]} 24... Rxb3 {[%clk 0:03:09.5]} 25. Rab1
{[%clk 0:02:45.3]} 25... Rc3 {[%clk 0:03:03.1]} 26. Rxb5 {[%clk 0:02:42.1]}
26... Rfc8 {[%clk 0:03:02.4]} 27. g3 {[%clk 0:02:32.9]} 27... Qf6 {[%clk
0:02:57.6]} 28. Rfb1 {[%clk 0:02:29.9]} 28... h5 {[%clk 0:02:51.1]} 29. Rb8
{[%clk 0:02:26]} 29... h4 {[%clk 0:02:48.7]} 30. Qg4 {[%clk 0:02:21.7]} 30...
Rc1+ {[%clk 0:02:37.9]} 31. Rxc1 {[%clk 0:02:16.1]} 31... Rxb8 {[%clk
0:02:37.4]} 32. Rc8+ {[%clk 0:02:15.3]} 32... Rxc8 {[%clk 0:02:34.6]} 33. Qxc8+
{[%clk 0:02:15.2]} 33... Kh7 {[%clk 0:02:33.6]} 34. e5+ {[%clk 0:02:14.4]} 1-0

[Event "Live Chess"]
[Site "Chess.com"]
[Date "2023.05.20"]
[Round "-"]
[White "Inglaterra"]
[Black "ramses-IIG"]
[Result "1-0"]
[WhiteElo "2076"]
[BlackElo "785"]
[TimeControl "300"]
[EndTime "11:04:27 PDT"]
[Termination "Inglaterra won by checkmate"]

1. e4 {[%clk 0:04:59]} 1... d5 {[%clk 0:04:59.9]} 2. exd5 {[%clk 0:04:57.6]}
2... Qxd5 {[%clk 0:04:59.7]} 3. d4 {[%clk 0:04:56.7]} 3... Qe6+ {[%clk
0:04:59.6]} 4. Be2 {[%clk 0:04:51.8]} 4... Qg6 {[%clk 0:04:59.5]} 5. Bf3 {[%clk
0:04:48.5]} 5... c6 {[%clk 0:04:57.1]} 6. Ne2 {[%clk 0:04:31.7]} 6... e6 {[%clk
0:04:27.9]} 7. O-O {[%clk 0:04:11]} 7... h5 {[%clk 0:04:20.7]} 8. c4 {[%clk
0:04:02.8]} 8... h4 {[%clk 0:04:17.7]} 9. h3 {[%clk 0:04:01.1]} 9... Bd6 {[%clk
0:04:00]} 10. Nbc3 {[%clk 0:03:53.9]} 10... Qf6 {[%clk 0:03:57.3]} 11. Ne4
{[%clk 0:03:48.3]} 11... Qe7 {[%clk 0:03:47.9]} 12. Bg5 {[%clk 0:03:39.1]} 12...
f6 {[%clk 0:03:42.8]} 13. Nxd6+ {[%clk 0:03:34.7]} 13... Qxd6 {[%clk 0:03:40.8]}
14. Bf4 {[%clk 0:03:34]} 14... Qb4 {[%clk 0:03:29.4]} 15. Qc2 {[%clk 0:03:29.1]}
15... Nh6 {[%clk 0:03:20.4]} 16. Qg6+ {[%clk 0:03:24.3]} 16... Kf8 {[%clk
0:03:09.8]} 17. a3 {[%clk 0:03:18.1]} 17... Qxb2 {[%clk 0:03:02.1]} 18. Bd6+
{[%clk 0:03:16.1]} 18... Kg8 {[%clk 0:02:51.9]} 19. Bh5 {[%clk 0:03:01.6]} 19...
Nf5 {[%clk 0:02:28.2]} 20. Qe8+ {[%clk 0:02:42.6]} 20... Kh7 {[%clk 0:02:26.9]}
21. Bg6+ {[%clk 0:02:41.6]} 21... Kh6 {[%clk 0:02:19.1]} 22. Bf4# {[%clk
0:02:40.6]} 1-0

[Event "Live Chess"]
[Site "Chess.com"]
[Date "2023.05.20"]
[Round "-"]
[White "LodeshChess"]
[Black "lHolyDiverl"]
[Result "1-0"]
[WhiteElo "956"]
[BlackElo "560"]
[TimeControl "300"]
[EndTime "11:04:30 PDT"]
[Termination "LodeshChess won by resignation"]

1. e4 {[%clk 0:04:58]} 1... c6 {[%clk 0:04:58.4]} 2. Nf3 {[%clk 0:04:56.6]} 2...
d5 {[%clk 0:04:57.3]} 3. d3 {[%clk 0:04:56.5]} 3... dxe4 {[%clk 0:04:50.6]} 4.
Ng5 {[%clk 0:04:55.7]} 4... Nf6 {[%clk 0:04:41.3]} 5. Nc3 {[%clk 0:04:53.3]}
5... exd3 {[%clk 0:04:38.8]} 6. Bxd3 {[%clk 0:04:51.8]} 6... h6 {[%clk
0:04:20.6]} 7. Nxf7 {[%clk 0:04:47.6]} 7... Kxf7 {[%clk 0:04:18.1]} 8. Bg6+
{[%clk 0:04:47.2]} 8... Kxg6 {[%clk 0:04:15.3]} 9. Qxd8 {[%clk 0:04:46.8]} 9...
Nbd7 {[%clk 0:03:57.5]} 10. Qc7 {[%clk 0:04:20.9]} 10... Nd5 {[%clk 0:03:32.4]}
11. Qg3+ {[%clk 0:04:17.6]} 1-0

[Event "Live Chess"]
[Site "Chess.com"]
[Date "2023.05.20"]
[Round "-"]
[White "ACx04"]
[Black "stevegleds"]
[Result "0-1"]
[WhiteElo "411"]
[BlackElo "614"]
[TimeControl "300"]
[EndTime "11:04:31 PDT"]
[Termination "stevegleds won by checkmate"]

1. e4 {[%clk 0:04:59.6]} 1... e5 {[%clk 0:04:57.6]} 2. Nf3 {[%clk 0:04:58.1]}
2... Nf6 {[%clk 0:04:47.4]} 3. Nxe5 {[%clk 0:04:56.1]} 3... d6 {[%clk
0:04:46.4]} 4. Nf3 {[%clk 0:04:54.7]} 4... Nxe4 {[%clk 0:04:44.3]} 5. Qe2 {[%clk
0:04:52.7]} 5... Qe7 {[%clk 0:04:42.2]} 6. d3 {[%clk 0:04:50.9]} 6... Nf6 {[%clk
0:04:22.9]} 7. Qxe7+ {[%clk 0:04:47.5]} 7... Bxe7 {[%clk 0:04:22.3]} 8. Be3
{[%clk 0:04:46.6]} 8... O-O {[%clk 0:04:20.6]} 9. Nc3 {[%clk 0:04:45.5]} 9...
Re8 {[%clk 0:04:19.8]} 10. O-O-O {[%clk 0:04:44.7]} 10... d5 {[%clk 0:04:13.3]}
11. d4 {[%clk 0:04:42.9]} 11... Nc6 {[%clk 0:04:11.4]} 12. Ne5 {[%clk
0:04:40.7]} 12... Nxe5 {[%clk 0:04:08.1]} 13. dxe5 {[%clk 0:04:40]} 13... Ne4
{[%clk 0:04:07.1]} 14. Nxe4 {[%clk 0:04:38.3]} 14... dxe4 {[%clk 0:04:06.4]} 15.
f4 {[%clk 0:04:36.3]} 15... exf3 {[%clk 0:04:03.9]} 16. gxf3 {[%clk 0:04:27.9]}
16... Bf5 {[%clk 0:03:52.7]} 17. c3 {[%clk 0:04:25]} 17... Rad8 {[%clk
0:03:48.2]} 18. Bd3 {[%clk 0:04:24]} 18... Bxd3 {[%clk 0:03:43.6]} 19. Rxd3
{[%clk 0:04:22.5]} 19... Rxd3 {[%clk 0:03:41.8]} 20. Kc2 {[%clk 0:04:21.7]}
20... Rxe3 {[%clk 0:03:40.3]} 21. Rb1 {[%clk 0:04:16.9]} 21... Rxe5 {[%clk
0:03:37.2]} 22. b4 {[%clk 0:04:16]} 22... Re2+ {[%clk 0:03:33.6]} 23. Kb3 {[%clk
0:04:14.6]} 23... Rxh2 {[%clk 0:03:30.9]} 24. a4 {[%clk 0:04:13.1]} 24... b6
{[%clk 0:03:26.2]} 25. a5 {[%clk 0:04:08.6]} 25... b5 {[%clk 0:03:22.7]} 26. c4
{[%clk 0:04:06.1]} 26... c6 {[%clk 0:03:16.6]} 27. cxb5 {[%clk 0:04:05.1]} 27...
cxb5 {[%clk 0:03:14.6]} 28. Rb2 {[%clk 0:04:01.6]} 28... Rh3 {[%clk 0:03:09.3]}
29. Ka3 {[%clk 0:03:50.3]} 29... a6 {[%clk 0:03:06.5]} 30. Rb3 {[%clk
0:03:48.2]} 30... Rd8 {[%clk 0:02:58.1]} 31. f4 {[%clk 0:03:46.7]} 31... Rdd3
{[%clk 0:02:51.3]} 32. Rxd3 {[%clk 0:03:45.5]} 32... Rxd3+ {[%clk 0:02:50.3]}
33. Kb2 {[%clk 0:03:44.3]} 33... Bxb4 {[%clk 0:02:45.7]} 34. Kc2 {[%clk
0:03:42.5]} 34... Rh3 {[%clk 0:02:41.3]} 35. f5 {[%clk 0:03:39.7]} 35... f6
{[%clk 0:02:37.4]} 36. Kb2 {[%clk 0:03:37.3]} 36... Bxa5 {[%clk 0:02:34.9]} 37.
Kc2 {[%clk 0:03:34.2]} 37... b4 {[%clk 0:02:33.8]} 38. Kd2 {[%clk 0:03:33.4]}
38... b3+ {[%clk 0:02:32.8]} 39. Kc1 {[%clk 0:03:32.4]} 39... Rh2 {[%clk
0:02:14.5]} 40. Kb1 {[%clk 0:03:26.9]} 40... b2 {[%clk 0:02:06.8]} 41. Ka2
{[%clk 0:03:21]} 41... b1=Q+ {[%clk 0:02:05.5]} 42. Kxb1 {[%clk 0:03:20.1]}
42... Kf8 {[%clk 0:02:01.5]} 43. Kc1 {[%clk 0:03:17.6]} 43... Ke7 {[%clk
0:02:00.6]} 44. Kd1 {[%clk 0:03:16.9]} 44... Kd6 {[%clk 0:02:00]} 45. Kc1 {[%clk
0:03:07.7]} 45... Kd5 {[%clk 0:01:59.3]} 46. Kb1 {[%clk 0:03:06.3]} 46... Kd4
{[%clk 0:01:58.5]} 47. Ka1 {[%clk 0:03:05.7]} 47... Kc3 {[%clk 0:01:56.4]} 48.
Kb1 {[%clk 0:03:04]} 48... Rg2 {[%clk 0:01:53.1]} 49. Kc1 {[%clk 0:03:02.9]}
49... Rg1# {[%clk 0:01:51.8]} 0-1